[Event "Kwalificatie NJK B Groningen"]
[Site "Hoogkerk, Netherlands"]
[Date "2023.02.18"]
[Round "1.1"]
[White "Terlouw, Wouter"]
[Black "Sterk, Ralf"]
[Result "1-0"]
[TimeControl "55 min. + 10 sec./zet"]
[WhiteElo "1925"]
[BlackElo "1592"]

1. d4 {[%emt 00:00:06]} Nf6 {[%emt 00:00:05]} 2. c4 {[%emt 00:00:05]} g6 {[%emt
00:00:20]} 3. f3 {[%emt 00:00:22]} d5 4. cxd5 {[%emt 00:00:08]} Nxd5 5. e4
{[%emt 00:00:08]} Nb6 6. Nc3 {[%emt 00:00:17]} Bg7 7. Be3 {[%emt 00:00:04]} O-O
{[%emt 00:00:27]} 8. Qd2 {[%emt 00:00:37]} Nc6 {[%emt 00:00:13]} 9. O-O-O
{[%emt 00:01:08]} a5 {[%emt 00:01:22]} 10. g4 {[%emt 00:01:27]} a4 {[%emt
00:00:54]} 11. h4 Na5 {[%emt 00:00:44]} 12. Bf4 {[%emt 00:06:32]} Nbc4 {[%emt
00:03:51]} 13. Bxc4 {[%emt 00:00:12]} Nxc4 {[%emt 00:00:15]} 14. Qd3 b5 {[%emt
00:00:42]} 15. Nxb5 {[%emt 00:04:15]} Ba6 {[%emt 00:02:36]} 16. Qxc4 {[%emt
00:00:19]} Rb8 {[%emt 00:00:41]} 17. Kb1 {[%emt 00:07:09]} Rxb5 {[%emt
00:01:44]} 18. Qxc7 {[%emt 00:00:50]} Bxd4 {[%emt 00:01:25]} 19. Qxd8 {[%emt
00:00:16]} Rxb2+ {[%emt 00:00:49]} 20. Kc1 Rxd8 {[%emt 00:01:38]} 21. Rxd4
{[%emt 00:00:16]} Rxd4 {[%emt 00:01:03]} 22. Kxb2 {[%emt 00:00:34]} Rb4+ 23.
Ka3 {[%emt 00:00:28]} Rd4 {[%emt 00:01:13]} 24. h5 {[%emt 00:00:34]} f6 {[%emt
00:01:31]} 25. hxg6 {[%emt 00:01:38]} hxg6 {[%emt 00:00:48]} 26. Rh2 e5 {[%emt
00:00:16]} 27. Rd2 {[%emt 00:01:05]} Rc4 {[%emt 00:01:28]} 28. Bg3 {[%emt
00:00:22]} Bb5 {[%emt 00:01:18]} 29. Ne2 {[%emt 00:01:31]} Kf7 {[%emt
00:00:47]} 30. Rb2 {[%emt 00:00:58]} Bc6 {[%emt 00:00:35]} 31. Rd2 {[%emt
00:02:05]} Bb5 {[%emt 00:00:42]} 32. Bf2 {[%emt 00:01:48]} Ke7 {[%emt
00:03:03]} 33. Be3 {[%emt 00:01:49]} Kf7 {[%emt 00:00:45]} 34. Kb2 {[%emt
00:00:32]} Rb4+ {[%emt 00:02:21]} 35. Kc1 {[%emt 00:01:03]} Rc4+ 36. Kd1 {[%emt
00:00:12]} Ke7 {[%emt 00:01:44]} 37. Rd5 {[%emt 00:00:44]} Bc6 {[%emt
00:02:01]} 38. Rc5 Rxc5 39. Bxc5+ Ke6 {[%emt 00:00:25]} 40. Ng3 {[%emt
00:00:23]} Bb5 {[%emt 00:01:56]} 41. Kc2 Kf7 {[%emt 00:01:19]} 42. Kc3 {[%emt
00:00:52]} Ke6 43. Kb4 Bc6 {[%emt 00:00:06]} 44. a3 {[%emt 00:00:34]} Bd7
{[%emt 00:00:41]} 45. Be3 {[%emt 00:02:32]} Bc6 {[%emt 00:00:10]} 46. Ka5
{[%emt 00:01:13]} Bd7 47. Bd2 {[%emt 00:01:26]} Bc6 {[%emt 00:01:14]} 48. Kb4
Bd7 49. Ne2 {[%emt 00:00:14]} f5 {[%emt 00:00:50]} 50. Nc3 {[%emt 00:01:11]}
fxe4 {[%emt 00:01:53]} 51. fxe4 Bc6 {[%emt 00:01:49]} 52. Nxa4 Kd6 {[%emt
00:00:04]} 53. Nc5 {[%emt 00:00:15]} Ba8 {[%emt 00:00:27]} 54. Kb5 {[%emt
00:01:21]} Kc7 {[%emt 00:00:19]} 55. Bc3 Kd6 {[%emt 00:00:06]} 56. Kb6 {[%emt
00:00:18]} Bc6 {[%emt 00:00:51]} 57. a4 Ba8 {[%emt 00:00:16]} 58. a5 Bc6 59.
Nb7 {[%emt 00:00:43]} Bxb7 60. Kxb7 {[%emt 00:00:05]} g5 61. a6 {[%emt
00:00:04]} Ke6 {[%emt 00:00:05]} 62. a7 {[%emt 00:00:14]} Kd6 {[%emt 00:00:05]}
63. a8=Q Ke6 {[%emt 00:00:24]} 64. Kc7 Ke7 {[%emt 00:00:09]} 65. Qd8 {[%emt
00:00:32]} Ke6 {[%emt 00:00:08]} 66. Qe8+ {[%emt 00:00:14]} Kf6 {[%emt
00:00:08]} 67. Bxe5+ 1-0

[Event "Kwalificatie NJK B Groningen"]
[Site "Hoogkerk, Netherlands"]
[Date "2023.02.18"]
[Round "1.2"]
[White "Blok, Xaveer"]
[Black "Van Hesselingen, Guido"]
[Result "0-1"]
[TimeControl "55 min. + 10 sec./zet"]
[WhiteElo "1581"]
[BlackElo "1908"]

1. e4 {[%clk 00:55:18]} e5 {[%clk 00:55:13]} 2. Nf3 {[%clk 00:55:23]} Nc6
{[%clk 00:55:18]} 3. Bc4 {[%clk 00:55:26]} Bc5 {[%clk 00:55:15]} 4. c3 {[%clk
00:55:20]} Nf6 {[%clk 00:55:04]} 5. d3 {[%clk 00:55:15]} d6 {[%clk 00:54:45]} 6.
a4 {[%clk 00:55:01]} a5 {[%clk 00:54:03]} 7. O-O {[%clk 00:54:52]} O-O {[%clk
00:53:26]} 8. Bg5 {[%clk 00:54:20]} Be6 {[%clk 00:42:28]} 9. Nbd2 {[%clk
00:52:58]} Qe7 {[%clk 00:36:39]} 10. Qb3 {[%clk 00:50:38]} Kh8 {[%clk
00:32:18]} 11. Bxf6 {[%clk 00:43:06]} Qxf6 {[%clk 00:21:30]} 12. Qxb7 {[%clk
00:40:53]} Bd7 {[%clk 00:18:11]} 13. Qb3 {[%clk 00:36:17]} Rab8 {[%clk
00:16:41]} 14. Qc2 {[%clk 00:35:27]} Qe7 {[%clk 00:16:16]} 15. Nb3 {[%clk
00:33:02]} Bb6 {[%clk 00:14:41]} 16. d4 {[%clk 00:30:48]} Bg4 {[%clk 00:10:53]}
17. d5 {[%clk 00:27:38]} Bxf3 {[%clk 00:10:47]} 18. gxf3 {[%clk 00:27:10]} Qg5+
{[%clk 00:10:13]} 19. Kh1 {[%clk 00:27:05]} Ne7 {[%clk 00:10:18]} 20. Rg1
{[%clk 00:25:23]} Qh4 {[%clk 00:08:06]} 21. Rg3 {[%clk 00:21:50]} f5 22. Rag1
{[%clk 00:20:34]} Rf7 {[%clk 00:06:23]} {[%emt 00:01:23]} 23. Nc1 {[%clk
00:15:45]} {[%emt 00:05:00]} fxe4 {[%clk 00:04:52]} {[%emt 00:01:42]} 24. Qxe4
{[%clk 00:12:32]} {[%emt 00:03:22]} Qxe4 {[%clk 00:02:55]} {[%emt 00:02:06]} 25.
fxe4 {[%clk 00:12:33]} {[%emt 00:00:08]} Bxf2 {[%clk 00:02:45]} {[%emt
00:00:22]} 26. Rf1 {[%clk 00:12:16]} {[%emt 00:00:25]} Bxg3 {[%clk 00:02:19]}
{[%emt 00:00:38]} 27. Rxf7 {[%clk 00:12:04]} {[%emt 00:00:21]} Bh4 {[%clk
00:02:23]} {[%emt 00:00:07]} 28. Nd3 {[%clk 00:11:28]} {[%emt 00:00:45]} Kg8
{[%clk 00:02:22]} {[%emt 00:00:11]} 29. Rf1 {[%clk 00:11:15]} {[%emt 00:00:23]}
g5 {[%clk 00:01:50]} {[%emt 00:00:43]} 30. b4 {[%clk 00:10:12]} {[%emt
00:01:14]} Ra8 {[%clk 00:01:31]} {[%emt 00:00:29]} 31. bxa5 {[%clk 00:09:08]}
{[%emt 00:01:14]} Rxa5 {[%clk 00:01:39]} {[%emt 00:00:01]} 32. Bb5 {[%clk
00:09:02]} {[%emt 00:00:16]} Nc8 {[%clk 00:00:57]} {[%emt 00:00:51]} 33. c4
{[%clk 00:08:24]} {[%emt 00:00:49]} Nb6 {[%clk 00:00:59]} {[%emt 00:00:08]} 34.
Ra1 {[%clk 00:07:59]} {[%emt 00:00:35]} g4 {[%clk 00:00:57]} {[%emt 00:00:12]}
35. Kg2 {[%clk 00:07:32]} {[%emt 00:00:36]} h5 {[%clk 00:00:57]} {[%emt
00:00:10]} 36. c5 {[%clk 00:06:20]} {[%emt 00:01:22]} dxc5 {[%clk 00:00:38]}
{[%emt 00:00:30]} 37. Nxc5 {[%clk 00:05:51]} {[%emt 00:00:38]} Nxa4 {[%clk
00:00:26]} {[%emt 00:00:24]} 38. Bxa4 {[%clk 00:05:00]} {[%emt 00:00:59]} Rxc5
{[%clk 00:00:35]} {[%emt 00:00:02]} 39. Be8 {[%clk 00:04:46]} {[%emt 00:00:22]}
Rc2+ {[%clk 00:00:34]} {[%emt 00:00:12]} 40. Kg1 {[%clk 00:04:46]} {[%emt
00:00:11]} Bf2+ {[%clk 00:00:38]} {[%emt 00:00:07]} 41. Kf1 {[%clk 00:04:40]}
{[%emt 00:00:15]} h4 {[%clk 00:00:45]} {[%emt 00:00:04]} 42. Bd7 {[%clk
00:03:53]} {[%emt 00:00:54]} g3 {[%clk 00:00:51]} {[%emt 00:00:05]} 43. hxg3
{[%clk 00:03:48]} {[%emt 00:00:15]} hxg3 {[%clk 00:01:00]} {[%emt 00:00:02]} 44.
Bh3 {[%clk 00:03:44]} {[%emt 00:00:14]} Kg7 {[%clk 00:00:52]} {[%emt 00:00:18]}
45. Ra6 {[%clk 00:03:10]} {[%emt 00:00:43]} Rc4 {[%clk 00:00:34]} {[%emt
00:00:27]} 46. Bg2 {[%clk 00:03:00]} {[%emt 00:00:22]} Kf7 {[%clk 00:00:29]}
{[%emt 00:00:15]} 47. Re6 {[%clk 00:02:49]} {[%emt 00:00:21]} Bd4 {[%clk
00:00:38]} 48. Ra6 {[%clk 00:01:59]} {[%emt 00:00:59]} Rc2 {[%clk 00:00:39]}
{[%emt 00:00:10]} 49. Ra3 {[%clk 00:00:44]} {[%emt 00:01:23]} Rf2+ {[%clk
00:00:43]} {[%emt 00:00:08]} 50. Kg1 {[%clk 00:00:12]} {[%emt 00:00:42]} Ra2+
{[%clk 00:00:51]} {[%emt 00:00:03]} 0-1

[Event "Kwalificatie NJK B Groningen"]
[Site "Hoogkerk, Netherlands"]
[Date "2023.02.18"]
[Round "1.3"]
[White "Van Arendonk, Polle"]
[Black "Koppenens, Oscar"]
[Result "1-0"]
[TimeControl "55 min. + 10 sec./zet"]
[WhiteElo "1906"]
[BlackElo "1572"]

1. e4 {[%clk 00:55:17]} {[%emt 00:00:03]} e6 {[%clk 00:55:10]} {[%emt
00:00:11]} 2. d4 {[%clk 00:55:23]} {[%emt 00:00:04]} d5 {[%clk 00:55:14]}
{[%emt 00:00:06]} 3. Nd2 {[%clk 00:55:31]} {[%emt 00:00:02]} Nf6 {[%clk
00:55:18]} {[%emt 00:00:06]} 4. e5 {[%clk 00:55:38]} {[%emt 00:00:03]} Nfd7
{[%clk 00:55:21]} {[%emt 00:00:07]} 5. Bd3 {[%clk 00:55:44]} {[%emt 00:00:03]}
c5 {[%clk 00:55:22]} {[%emt 00:00:11]} 6. c3 {[%clk 00:55:50]} {[%emt
00:00:03]} Nc6 {[%clk 00:55:13]} {[%emt 00:00:19]} 7. Ne2 {[%clk 00:55:53]}
{[%emt 00:00:07]} Be7 {[%clk 00:55:13]} {[%emt 00:00:10]} 8. O-O {[%clk
00:55:19]} {[%emt 00:00:43]} O-O {[%clk 00:54:54]} {[%emt 00:00:29]} 9. f4
{[%clk 00:54:04]} {[%emt 00:01:25]} f6 {[%clk 00:53:37]} {[%emt 00:01:27]} 10.
Nf3 {[%clk 00:51:30]} {[%emt 00:02:45]} Qb6 {[%clk 00:53:22]} {[%emt 00:00:24]}
11. Kh1 {[%clk 00:47:14]} {[%emt 00:04:27]} Qc7 {[%clk 00:50:47]} {[%emt
00:02:45]} 12. Qe1 {[%clk 00:43:21]} {[%emt 00:04:03]} fxe5 {[%clk 00:49:19]}
{[%emt 00:01:38]} 13. fxe5 {[%clk 00:42:50]} {[%emt 00:00:41]} c4 {[%clk
00:49:16]} {[%emt 00:00:13]} 14. Bc2 {[%clk 00:41:30]} {[%emt 00:01:29]} b5
{[%clk 00:48:56]} {[%emt 00:00:31]} 15. Bg5 {[%clk 00:37:41]} {[%emt 00:03:59]}
Rxf3 {[%clk 00:45:56]} {[%emt 00:03:10]} 16. Rxf3 {[%clk 00:29:36]} {[%emt
00:08:15]} Bxg5 {[%clk 00:44:32]} {[%emt 00:01:34]} 17. Qg3 {[%clk 00:29:23]}
{[%emt 00:00:23]} h6 {[%clk 00:43:15]} {[%emt 00:01:26]} 18. h4 {[%clk
00:27:55]} {[%emt 00:01:38]} Bd8 {[%clk 00:42:48]} {[%emt 00:00:38]} 19. Qg6
{[%clk 00:21:11]} {[%emt 00:06:54]} Nf8 {[%clk 00:41:28]} {[%emt 00:01:30]} 20.
Rxf8+ {[%clk 00:21:03]} {[%emt 00:00:18]} Kxf8 {[%clk 00:41:30]} {[%emt
00:00:07]} 21. Rf1+ {[%clk 00:21:10]} {[%emt 00:00:03]} Bf6 {[%clk 00:41:29]}
{[%emt 00:00:11]} 22. exf6 {[%clk 00:21:08]} {[%emt 00:00:13]} Kg8 {[%clk
00:40:50]} {[%emt 00:00:49]} 23. Qh7+ {[%clk 00:20:43]} {[%emt 00:00:35]} Kf8
{[%clk 00:40:55]} {[%emt 00:00:04]} 24. fxg7+ {[%clk 00:20:44]} {[%emt
00:00:09]} Ke7 {[%clk 00:40:49]} {[%emt 00:00:16]} 25. Rf7+ {[%clk 00:18:40]}
{[%emt 00:02:15]} Kxf7 {[%clk 00:40:45]} {[%emt 00:00:14]} 26. g8=Q+ {[%clk
00:18:41]} {[%emt 00:00:09]} Kf6 {[%clk 00:40:46]} {[%emt 00:00:08]} 27. Qgg6#
{[%clk 00:18:41]} {[%emt 00:00:11]} 1-0

[Event "Kwalificatie NJK B Groningen"]
[Site "Hoogkerk, Netherlands"]
[Date "2023.02.18"]
[Round "1.4"]
[White "De Wit, Evan"]
[Black "Ritzerveld, Noah"]
[Result "0-1"]
[TimeControl "55 min. + 10 sec./zet"]
[WhiteElo "1567"]
[BlackElo "1868"]

1. d4 {[%clk 00:55:14]} d5 {[%clk 00:55:14]} 2. c4 {[%clk 00:55:18]} c6 {[%clk
00:55:21]} 3. Nf3 {[%clk 00:55:20]} Nf6 {[%clk 00:55:26]} 4. g3 {[%clk
00:55:23]} g6 {[%clk 00:55:30]} 5. Bg2 {[%clk 00:55:26]} Bg7 {[%clk 00:55:36]}
6. O-O {[%clk 00:55:28]} O-O {[%clk 00:55:41]} 7. Nc3 {[%clk 00:55:23]} Bf5
{[%clk 00:54:54]} 8. Bf4 {[%clk 00:54:02]} Nbd7 {[%clk 00:51:28]} 9. Re1 {[%clk
00:53:22]} Rc8 {[%clk 00:48:22]} 10. Nd2 {[%clk 00:52:10]} Qb6 {[%clk
00:42:29]} 11. e4 {[%clk 00:48:59]} dxe4 {[%clk 00:40:38]} 12. Nb3 {[%clk
00:46:08]} Bg4 {[%clk 00:25:21]} 13. Qd2 {[%clk 00:41:45]} Rfe8 {[%clk
00:23:41]} 14. Nxe4 {[%clk 00:39:23]} Nxe4 {[%clk 00:23:34]} 15. Bxe4 {[%clk
00:36:51]} e5 {[%clk 00:21:18]} 16. dxe5 {[%clk 00:36:12]} Nxe5 {[%clk
00:20:41]} 17. Bxe5 {[%clk 00:35:40]} Bxe5 {[%clk 00:18:05]} 18. Rab1 {[%clk
00:33:55]} Be6 {[%clk 00:15:53]} 19. Bxg6 {[%clk 00:30:53]} hxg6 {[%clk
00:15:38]} 20. Rxe5 {[%clk 00:30:32]} Bxc4 {[%clk 00:15:24]} 21. Rbe1 {[%clk
00:24:10]} Rxe5 {[%clk 00:14:46]} 22. Rxe5 {[%clk 00:24:06]} Bxb3 {[%clk
00:13:55]} 23. axb3 {[%clk 00:21:45]} Qxb3 {[%clk 00:13:34]} 24. Qd7 {[%clk
00:21:22]} Rf8 {[%clk 00:12:56]} 25. Qd2 {[%clk 00:20:26]} b6 {[%clk 00:11:43]}
26. Rh5 {[%clk 00:17:38]} {[%emt 00:00:07]} Re8 {[%clk 00:10:00]} {[%emt
00:02:01]} 27. Rh4 {[%clk 00:16:32]} {[%emt 00:01:14]} Qd5 {[%clk 00:09:37]}
{[%emt 00:00:35]} 28. Qc3 {[%clk 00:15:19]} {[%emt 00:01:22]} Re5 {[%clk
00:07:11]} {[%emt 00:02:37]} 29. b4 {[%clk 00:12:00]} {[%emt 00:03:29]} f6
{[%clk 00:06:06]} {[%emt 00:01:15]} 30. Rd4 {[%clk 00:10:25]} {[%emt 00:01:44]}
Qe6 {[%clk 00:06:01]} {[%emt 00:00:16]} 31. Rd8+ {[%clk 00:08:16]} {[%emt
00:02:18]} Kg7 {[%clk 00:06:05]} {[%emt 00:00:06]} 32. b5 {[%clk 00:07:19]}
{[%emt 00:01:07]} Rxb5 {[%clk 00:05:12]} {[%emt 00:01:04]} 33. Qa3 {[%clk
00:06:01]} {[%emt 00:01:28]} Qe1+ {[%clk 00:03:47]} {[%emt 00:01:35]} 34. Kg2
{[%clk 00:05:44]} {[%emt 00:00:26]} Qe4+ {[%clk 00:03:49]} {[%emt 00:00:58]}
0-1

[Event "Kwalificatie NJK B Groningen"]
[Site "Hoogkerk, Netherlands"]
[Date "2023.02.18"]
[Round "1.5"]
[White "Krylov, Philippe"]
[Black "Veraart, Jan"]
[Result "1-0"]
[TimeControl "55 min. + 10 sec./zet"]
[WhiteElo "1862"]
[BlackElo "1562"]

1. d4 {[%clk 00:55:18]} {[%emt 00:00:41]} d5 {[%clk 00:55:17]} 2. c4 {[%clk
00:54:54]} {[%emt 00:00:24]} e6 {[%clk 00:55:21]} 3. Nc3 {[%clk 00:55:01]} c5
{[%clk 00:55:28]} 4. cxd5 {[%clk 00:54:10]} {[%emt 00:00:49]} exd5 {[%clk
00:55:31]} {[%emt 00:00:16]} 5. Nf3 {[%clk 00:53:39]} {[%emt 00:00:31]} Nf6
{[%clk 00:55:11]} {[%emt 00:00:46]} 6. g3 {[%clk 00:52:31]} {[%emt 00:01:02]}
Nc6 {[%clk 00:55:00]} {[%emt 00:00:25]} 7. Bg2 {[%clk 00:51:26]} {[%emt
00:01:10]} cxd4 {[%clk 00:54:24]} {[%emt 00:00:48]} 8. Nxd4 {[%clk 00:51:27]}
{[%emt 00:00:08]} Bc5 {[%clk 00:54:29]} {[%emt 00:00:42]} 9. Nb3 {[%clk
00:40:16]} {[%emt 00:11:09]} Bb6 {[%clk 00:53:35]} {[%emt 00:01:19]} 10. Nxd5
{[%clk 00:36:26]} {[%emt 00:03:22]} O-O {[%clk 00:53:12]} {[%emt 00:00:33]} 11.
O-O {[%clk 00:35:44]} {[%emt 00:00:49]} Be6 {[%clk 00:53:14]} {[%emt 00:00:37]}
12. e4 {[%clk 00:33:36]} {[%emt 00:01:49]} Nd7 {[%clk 00:39:34]} {[%emt
00:13:49]} 13. Qe2 {[%clk 00:27:48]} {[%emt 00:06:13]} f5 {[%clk 00:38:14]}
{[%emt 00:01:33]} 14. Be3 {[%clk 00:18:55]} {[%emt 00:08:47]} fxe4 {[%clk
00:35:01]} {[%emt 00:03:45]} 15. Bxe4 {[%clk 00:17:55]} {[%emt 00:01:27]} Nf6
{[%clk 00:34:37]} 16. Nxf6+ {[%clk 00:16:17]} {[%emt 00:01:46]} Qxf6 {[%clk
00:34:36]} {[%emt 00:00:19]} 17. Bxb6 {[%clk 00:14:41]} {[%emt 00:01:43]} axb6
{[%clk 00:34:36]} {[%emt 00:00:04]} 18. f4 {[%clk 00:09:24]} {[%emt 00:06:08]}
Nd4 {[%clk 00:21:53]} {[%emt 00:12:07]} 19. Qd3 {[%clk 00:08:24]} {[%emt
00:01:11]} Rfd8 {[%clk 00:18:33]} {[%emt 00:03:59]} 20. Bxh7+ {[%clk 00:04:03]}
{[%emt 00:04:30]} Kh8 {[%clk 00:18:34]} {[%emt 00:00:19]} 21. Nxd4 {[%clk
00:03:38]} Rxd4 {[%clk 00:16:00]} {[%emt 00:03:08]} 22. Qg6 {[%clk 00:03:41]}
Qe7 {[%clk 00:09:27]} {[%emt 00:06:52]} 23. Qh5 {[%clk 00:03:25]} {[%emt
00:00:09]} Rd5 {[%clk 00:07:23]} {[%emt 00:02:32]} 24. Bf5+ {[%clk 00:03:05]}
{[%emt 00:00:14]} Kg8 {[%clk 00:07:18]} {[%emt 00:00:05]} 25. Qh7+ {[%clk
00:02:53]} {[%emt 00:00:50]} Kf8 {[%clk 00:07:25]} 26. Bxe6 {[%clk 00:02:19]}
{[%emt 00:01:02]} Qxe6 {[%clk 00:05:41]} {[%emt 00:01:38]} 27. Rae1 {[%clk
00:02:20]} Qh6 {[%clk 00:03:01]} {[%emt 00:02:49]} 28. Qxh6 {[%clk 00:02:20]}
{[%emt 00:00:10]} gxh6 {[%clk 00:03:07]} 29. Re6 {[%clk 00:02:08]} {[%emt
00:00:36]} Rxa2 {[%clk 00:03:10]} 30. Rxb6 {[%clk 00:02:16]} Rd7 {[%clk
00:02:54]} {[%emt 00:00:22]} 31. Rf2 {[%clk 00:02:24]} Kg7 {[%clk 00:02:54]}
{[%emt 00:00:10]} 32. g4 {[%clk 00:01:55]} {[%emt 00:00:57]} Ra4 {[%clk
00:02:49]} 33. Kg2 {[%clk 00:01:59]} {[%emt 00:00:05]} Re4 {[%clk 00:02:17]}
{[%emt 00:00:50]} 34. Kg3 {[%clk 00:01:48]} Re3+ {[%clk 00:01:56]} {[%emt
00:00:27]} 35. Rf3 {[%clk 00:01:49]} {[%emt 00:00:12]} Re2 {[%clk 00:02:00]}
{[%emt 00:00:20]} 36. Rfb3 {[%clk 00:01:49]} Rdd2 {[%clk 00:01:33]} {[%emt
00:00:31]} 37. Rxb7+ {[%clk 00:01:55]} {[%emt 00:00:16]} Kf8 {[%clk 00:01:38]}
{[%emt 00:00:38]} 38. Kf3 {[%clk 00:01:09]} {[%emt 00:00:08]} Rxh2 {[%clk
00:01:19]} {[%emt 00:00:50]} 39. Ra3 {[%clk 00:00:48]} {[%emt 00:00:15]} Rhf2+
{[%clk 00:01:12]} {[%emt 00:00:14]} 40. Ke4 {[%clk 00:00:56]} {[%emt 00:00:05]}
Rfe2+ {[%clk 00:01:06]} {[%emt 00:00:28]} 41. Kf5 {[%clk 00:01:04]} Rd5+ {[%clk
00:01:03]} {[%emt 00:00:25]} 42. Kg6 {[%clk 00:00:40]} {[%emt 00:00:07]} Rd6+
{[%clk 00:00:53]} {[%emt 00:00:20]} 43. Kh7 {[%clk 00:00:42]} {[%emt 00:00:27]}
Re8 {[%clk 00:00:00]} {[%emt 00:00:47]} 44. Raa7 {[%clk 00:00:42]} 1-0

[Event "Kwalificatie NJK B Groningen"]
[Site "Hoogkerk, Netherlands"]
[Date "2023.02.18"]
[Round "1.6"]
[White "Folkers, Sono"]
[Black "Van Foreest, Nanne"]
[Result "0-1"]
[TimeControl "55 min. + 10 sec./zet"]
[WhiteElo "1559"]
[BlackElo "1862"]

1. e4 {[%clk 00:55:18]} {[%emt 00:00:04]} c5 {[%clk 00:55:17]} {[%emt
00:00:18]} 2. d4 {[%clk 00:55:24]} cxd4 {[%clk 00:55:21]} 3. c3 {[%clk
00:55:31]} d5 {[%clk 00:55:28]} {[%emt 00:00:04]} 4. exd5 {[%clk 00:55:18]}
{[%emt 00:00:18]} Qxd5 {[%clk 00:55:31]} {[%emt 00:00:07]} 5. Nf3 {[%clk
00:55:10]} {[%emt 00:00:18]} Nf6 {[%clk 00:55:31]} {[%emt 00:00:11]} 6. Qxd4
{[%clk 00:55:14]} {[%emt 00:00:18]} e6 {[%clk 00:53:18]} {[%emt 00:02:12]} 7.
Qxd5 {[%clk 00:54:31]} {[%emt 00:00:52]} Nxd5 {[%clk 00:53:22]} {[%emt
00:00:07]} 8. Bb5+ {[%clk 00:54:11]} {[%emt 00:00:29]} Bd7 {[%clk 00:51:55]}
{[%emt 00:01:41]} 9. Bxd7+ {[%clk 00:52:43]} {[%emt 00:01:38]} Nxd7 {[%clk
00:51:46]} {[%emt 00:00:15]} 10. O-O {[%clk 00:52:41]} {[%emt 00:00:11]} Bc5
{[%clk 00:51:34]} {[%emt 00:00:22]} 11. b4 {[%clk 00:52:09]} {[%emt 00:00:42]}
Bb6 {[%clk 00:51:36]} {[%emt 00:00:11]} 12. Bb2 {[%clk 00:51:24]} {[%emt
00:00:52]} Rc8 {[%clk 00:51:23]} {[%emt 00:00:23]} 13. a3 {[%clk 00:49:50]}
{[%emt 00:01:45]} N7f6 {[%clk 00:50:38]} {[%emt 00:00:55]} 14. Ne5 {[%clk
00:47:55]} {[%emt 00:02:10]} Bc7 {[%clk 00:41:11]} {[%emt 00:09:31]} 15. Nf3
{[%clk 00:47:15]} {[%emt 00:00:49]} Bb6 {[%clk 00:40:01]} {[%emt 00:01:20]} 16.
Ne5 {[%clk 00:46:51]} {[%emt 00:00:36]} Bc7 {[%clk 00:35:55]} {[%emt 00:04:14]}
17. Nf3 {[%clk 00:46:55]} {[%emt 00:00:11]} Nb6 {[%clk 00:36:04]} 18. Nbd2
{[%clk 00:46:29]} {[%emt 00:00:34]} Na4 {[%clk 00:35:03]} {[%emt 00:01:12]} 19.
Rab1 {[%clk 00:46:28]} {[%emt 00:00:09]} O-O {[%clk 00:30:00]} {[%emt
00:05:13]} 20. Ba1 {[%clk 00:45:19]} {[%emt 00:01:19]} Rfd8 {[%clk 00:27:07]}
{[%emt 00:03:06]} 21. g3 {[%clk 00:42:34]} {[%emt 00:03:00]} Rd3 {[%clk
00:25:12]} {[%emt 00:02:00]} 22. Rb3 {[%clk 00:41:08]} {[%emt 00:01:46]} Rcd8
{[%clk 00:24:04]} {[%emt 00:01:05]} 23. c4 {[%clk 00:39:01]} {[%emt 00:02:17]}
Rxd2 {[%clk 00:23:13]} {[%emt 00:01:03]} 24. Nxd2 {[%clk 00:39:05]} {[%emt
00:00:06]} Rxd2 {[%clk 00:23:22]} 25. f3 {[%clk 00:34:35]} {[%emt 00:04:39]}
Nb6 {[%clk 00:22:22]} {[%emt 00:01:09]} 26. c5 {[%clk 00:31:31]} {[%emt
00:03:15]} Nbd5 {[%clk 00:22:09]} {[%emt 00:00:23]} 27. Rf2 {[%clk 00:31:20]}
{[%emt 00:00:16]} Rd1+ {[%clk 00:21:47]} {[%emt 00:00:47]} 28. Rf1 {[%clk
00:31:21]} Rxf1+ {[%clk 00:21:44]} {[%emt 00:00:20]} 29. Kxf1 {[%clk 00:31:26]}
Kf8 {[%clk 00:21:49]} {[%emt 00:00:05]} 30. Ke2 {[%clk 00:30:56]} {[%emt
00:00:36]} Ke7 {[%clk 00:21:44]} {[%emt 00:00:21]} 31. Kd3 {[%clk 00:29:41]}
{[%emt 00:01:19]} h5 {[%clk 00:21:43]} {[%emt 00:00:16]} 32. f4 {[%clk
00:28:20]} {[%emt 00:01:29]} h4 {[%clk 00:21:25]} {[%emt 00:00:25]} 33. Ke2
{[%clk 00:26:47]} {[%emt 00:01:43]} Ng4 {[%clk 00:19:07]} {[%emt 00:02:28]} 34.
Kf3 {[%clk 00:25:47]} {[%emt 00:01:13]} Nxh2+ {[%clk 00:18:45]} {[%emt
00:00:31]} 35. Kg2 {[%clk 00:25:37]} {[%emt 00:00:25]} hxg3 {[%clk 00:18:47]}
{[%emt 00:00:09]} 36. Rxg3 {[%clk 00:24:52]} {[%emt 00:00:47]} Nxf4+ {[%clk
00:18:53]} {[%emt 00:00:04]} 37. Kxh2 {[%clk 00:24:43]} {[%emt 00:00:19]} Ne2
{[%clk 00:18:52]} {[%emt 00:00:11]} 0-1